bitfinex/quotes_ETHUSD_20220111
["timestamp","ask_amount","ask_price","bid_price","bid_amount"]
[1641880764588,1.15794768,3110.5,3110.4,0.0073895]
[1641880765484,1.15794768,3110.5,3110.3,0.00795793]
[1641880766335,1.15794768,3110.5,3110.2,0.30852635]
[1641880766533,1.15794768,3110.5,3110.3,0.00795793]
[1641880766935,1.15794768,3110.5,3110.2,0.30852635]
[1641880767335,1.15794768,3110.5,3110.3,0.00795793]
[1641880768136,1.15794768,3110.5,3110.2,0.30852635]
[1641880768336,1.15794768,3110.5,3110.3,0.00795793]
[1641880769681,1.15794768,3110.5,3110.2,0.30852635]
[1641880769881,1.15794768,3110.5,3110.3,0.00795793]
[1641880770683,8.63929334,3111.4,3110.3,0.00795793]
[1641880770886,8.63929334,3111.4,3110.4,0.0061379]
[1641880771283,3.19317892,3110.5,3110.3,32.47941233]
[1641880771985,0.94595807,3110.6,3110.3,32.47941233]
[1641880772784,0.00397896,3111.2,3110.3,32.47941233]
[1641880773286,0.00341054,3111.1,3110.3,32.47941233]
[1641880773740,0.00284212,3111.0,3110.3,32.47941233]
[1641880773939,0.98202022,3110.9,3110.3,32.47941233]
[1641880774144,0.00227369,3110.9,3110.3,32.47941233]
[1641880774440,0.00170527,3110.8,3110.3,33.28298233]
[1641880774940,0.00113685,3110.7,3110.3,33.28298233]
[1641880775339,0.00397896,3111.2,3110.3,33.28298233]
[1641880775541,2.73699425,3111.2,3110.3,33.28298233]
[1641880775739,0.00341054,3111.1,3110.3,33.28298233]
[1641880776141,0.00284212,3111.0,3110.3,33.28298233]
[1641880776345,1.07113057,3110.7,3110.3,33.28298233]
[1641880777585,0.00227369,3110.9,3110.3,33.28298233]
[1641880777987,0.00170527,3110.8,3110.3,33.28298233]
[1641880778388,0.00113685,3110.7,3110.3,1.10357]
[1641880779588,1.00436047,3110.6,3110.3,1.10357]
[1641880779990,1.00436047,3110.6,3110.3,0.80357]
[1641880780390,4.20436047,3110.6,3110.3,0.80357]
[1641880780690,4.20436047,3110.6,3110.3,32.98298233]
[1641880780934,4.20436047,3110.6,3110.2,0.01254966]
[1641880781136,4.20436047,3110.6,3110.1,1.7466]
[1641880781336,4.20436047,3110.6,3110.3,0.00113685]
[1641880787987,3.2,3110.6,3110.3,0.30113685]
[1641880788450,3.2,3110.6,3110.3,0.60113685]
[1641880788649,3.2,3110.6,3110.4,0.80355]
[1641880789051,3.2,3110.6,3110.5,4.45800686]
[1641880789251,3.2,3110.6,3110.5,1.40345]
[1641880789455,3.2,3110.6,3110.5,1.67275]
[1641880789652,0.00113685,3110.7,3110.6,5.1]
[1641880789854,3.2713,3111.6,3111.1,0.80334]
[1641880790054,1.16342035,3111.3,3111.1,2.05064]
[1641880790255,1.16342035,3111.3,3111.2,0.3]
[1641880790652,1.16683089,3111.3,3111.2,0.3]
[1641880790854,1.16683089,3111.3,3110.4,4.53535686]
[1641880791054,1.16683089,3111.3,3110.5,1.0]
[1641880791253,2.7354735,3111.2,3110.5,1.00113685]
[1641880791451,2.7354735,3111.2,3110.5,0.00113685]
[1641880791652,0.00227369,3111.1,3110.5,0.00113685]
[1641880791853,0.00227369,3111.1,3110.5,0.80466685]
[1641880792052,0.00170527,3111.0,3110.5,0.80466685]
[1641880792303,0.00170527,3111.0,3110.6,0.3]
[1641880792504,0.00113684,3110.9,3110.6,0.3]
[1641880792908,0.00227369,3111.1,3110.6,1.103418]
[1641880793108,0.00227369,3111.1,3110.8,1.60674]
[1641880793304,0.00170527,3111.0,3110.9,0.3]
[1641880793506,0.00170527,3111.0,3110.9,1.4878]
[1641880794508,0.00170527,3111.0,3110.9,0.6]
[1641880794706,0.00170527,3111.0,3110.9,0.3]
[1641880794907,0.00170527,3111.0,3110.8,0.3]
[1641880795410,0.00113684,3110.9,3110.8,0.3]
[1641880797037,0.00113684,3110.9,3110.5,0.00113685]
[1641880797236,0.00113684,3110.9,3110.5,3.45979505]
[1641880797438,0.00113684,3110.9,3110.5,3.46813691]
[1641880797641,0.00113684,3110.9,3110.5,3.45846976]
[1641880797839,0.00113684,3110.9,3110.5,3.45672453]
[1641880798042,0.00113684,3110.9,3110.5,3.49864423]
[1641880798239,0.00113684,3110.9,3110.5,3.45650701]
[1641880798440,0.00113684,3110.9,3110.5,3.45628964]
[1641880798639,0.00113684,3110.9,3110.5,0.30113685]
[1641880799439,1.0404183,3110.8,3110.5,0.30113685]
[1641880800089,1.0404183,3110.8,3110.5,0.00113685]
[1641880800492,1.0404183,3110.8,3110.6,0.80348]
[1641880800693,0.9904183,3110.8,3110.6,0.80348]
[1641880800890,0.00113684,3110.9,3110.6,0.80348]
[1641880801104,3.2,3110.8,3110.6,0.80348]
[1641880801491,3.2,3110.8,3110.6,1.40348]
[1641880802791,1.07588417,3110.9,3110.6,1.40348]
[1641880802995,1.07588417,3110.9,3110.5,3.89386425]
[1641880803441,1.07588417,3110.9,3110.6,0.80348]
[1641880803738,1.07588417,3110.9,3110.6,1.10348]
[1641880804742,1.07588417,3110.9,3110.6,0.3]
[1641880804942,1.07588417,3110.9,3110.5,1.30113685]
[1641880804943,1.07588417,3110.9,3110.5,1.60113685]
[1641880805241,1.07588417,3110.9,3110.5,0.30113685]
[1641880806542,1.07474733,3110.9,3110.3,1.7399]
[1641880806942,1.07474733,3110.9,3110.3,0.6]
[1641880807204,1.46421953,3110.6,3110.4,0.00170527]
[1641880807791,1.07474733,3110.9,3110.3,0.3022737]
[1641880807992,1.07474733,3110.9,3110.4,2.61321192]
[1641880808191,1.07474733,3110.9,3110.5,3.62008145]
[1641880808394,1.07474733,3110.9,3110.5,4.9212183]
[1641880808690,1.07474733,3110.9,3110.6,2.31321192]
[1641880808890,1.07474733,3110.9,3110.7,3.17228255]
[1641880809091,1.07474733,3110.9,3110.7,0.3]
[1641880809293,1.07474733,3110.9,3110.5,0.00113685]
[1641880809591,0.63371377,3110.7,3110.2,0.00284212]
[1641880810393,0.63212176,3110.7,3110.2,0.00284212]
[1641880811051,1.83212176,3110.7,3110.2,0.00284212]
[1641880811742,1.00029232,3110.3,3110.1,0.7392558]
[1641880811941,1.83212176,3110.7,3110.2,36.15935535]
[1641880811942,0.00227369,3110.6,3110.2,36.15935535]
[1641880812341,0.00170527,3110.5,3110.3,0.3]
[1641880812742,0.00113685,3110.4,3110.3,0.3]
[1641880812940,0.00113685,3110.4,3110.3,3.52620123]
[1641880813141,0.00113685,3110.4,3110.3,3.82620123]
[1641880814145,0.00113685,3110.4,3110.3,0.6]
[1641880814794,0.63485062,3110.4,3110.3,0.6]
[1641880815191,1.26697238,3110.4,3110.3,0.6]
[1641880815595,1.26697238,3110.4,3110.3,3.71335221]
[1641880816093,1.26536185,3110.4,3110.3,3.0]
[1641880816493,1.26536185,3110.4,3110.3,0.6]
[1641880816696,1.26536185,3110.4,3109.7,0.04439979]
[1641880816897,1.26536185,3110.4,3109.8,0.3]
[1641880817096,1.26536185,3110.4,3109.8,0.00341055]
[1641880817298,1.26536185,3110.4,3109.8,2.37268181]
[1641880817498,1.26536185,3110.4,3109.8,2.97268181]
[1641880817699,1.26536185,3110.4,3109.9,2.41343542]
[1641880817897,1.26536185,3110.4,3110.0,0.3]
[1641880818097,1.26536185,3110.4,3110.0,0.6022737]
[1641880818442,1.26536185,3110.4,3110.1,0.00170528]
[1641880819841,0.63212176,3110.4,3110.1,0.00170528]
[1641880820040,0.63324009,3110.2,3110.1,0.00170528]
[1641880820442,1.26536185,3110.2,3110.1,2.10170528]
[1641880820841,1.26536185,3110.2,3110.1,2.40170528]
[1641880821645,1.26536185,3110.2,3110.1,0.00170528]
[1641880822044,1.26536185,3110.2,3109.9,0.00284212]
[1641880822303,1.26355803,3110.2,3109.9,0.00284212]
[1641880823305,1.0987119,3110.0,3109.9,3.55284212]
[1641880823501,1.0987119,3110.0,3109.9,3.85284212]
[1641880823900,1.0987119,3110.0,3109.9,6.98398531]
[1641880824111,1.0987119,3110.0,3109.9,39.16339764]
[1641880825100,0.63212176,3110.2,3109.9,39.16339764]
[1641880825302,0.63212176,3110.2,3110.0,0.80358]
[1641880825501,8.2946,3111.1,3110.1,3.50421544]
[1641880825701,0.63212176,3110.6,3110.1,3.50592072]
[1641880825943,0.63212176,3110.6,3110.2,0.00113685]
[1641880826142,1.03647166,3110.4,3110.2,0.00113685]
[1641880826343,0.63212176,3110.6,3110.2,1.60820485]
[1641880826542,0.63212176,3110.6,3110.3,0.3]
[1641880826943,0.63212176,3110.6,3110.3,3.53191526]
[1641880827145,0.63212176,3110.6,3110.3,0.6]
[1641880827343,0.63212176,3110.6,3110.2,0.00113685]
[1641880827742,0.63212176,3110.6,3110.1,0.00170528]
[1641880827943,0.63212176,3110.6,3110.0,0.0022737]
[1641880828243,0.87970949,3110.3,3110.0,0.0022737]
[1641880828645,0.87785764,3110.3,3110.0,0.0022737]
[1641880828944,0.87785764,3110.3,3109.9,0.00284212]
[1641880829145,0.87785764,3110.3,3109.9,1.00284212]
[1641880829447,0.87785764,3110.3,3110.0,0.0022737]
[1641880829892,0.87785764,3110.3,3110.0,0.3022737]
[1641880830096,0.87785764,3110.3,3110.0,0.3]
[1641880830293,0.87785764,3110.3,3110.1,0.00170528]
[1641880830493,0.63143627,3110.2,3110.1,0.00170528]
[1641880830897,0.63143627,3110.2,3110.1,0.80528528]
[1641880831095,1.26355803,3110.2,3110.1,4.09090956]
[1641880831296,0.00341054,3111.0,3110.2,5.76784971]
[1641880831595,3.1034,3111.1,3110.3,3.90169735]
[1641880831596,0.00284211,3110.9,3110.3,3.90169735]
[1641880831796,0.00284211,3110.9,3110.3,4.90169735]
[1641880832000,0.90936594,3110.6,3110.2,0.5122495]
[1641880832398,0.90936594,3110.6,3110.2,3.65914827]
[1641880832596,0.90936594,3110.6,3110.2,4.51730281]
[1641880832797,0.90936594,3110.6,3110.2,1.3157565]
[1641880832995,0.90936594,3110.6,3110.3,4.24697188]
[1641880833445,0.90936594,3110.6,3110.3,1.0]
[1641880833646,0.90936594,3110.6,3110.2,2.3157565]
[1641880834048,0.90936594,3110.6,3110.4,0.80346]
[1641880834446,0.90936594,3110.6,3110.4,4.28156217]
[1641880834649,0.90936594,3110.6,3110.4,4.58156217]
[1641880835047,0.90936594,3110.6,3110.4,0.6]
[1641880835247,0.90936594,3110.6,3110.4,0.3]
[1641880835447,0.90936594,3110.6,3110.5,0.3]
[1641880835748,0.91050278,3110.6,3110.3,0.6]
[1641880836549,0.00113684,3110.6,3110.4,4.75225693]
[1641880836751,0.00113684,3110.6,3110.5,5.93556632]
[1641880836949,0.00113684,3110.6,3110.5,6.93456632]
[1641880837209,0.00113684,3110.6,3110.5,1.299]
[1641880837995,0.00113684,3110.6,3110.5,0.6]
[1641880838398,0.00113684,3110.6,3110.1,0.30170528]
[1641880838697,0.00113684,3110.6,3110.2,0.00113685]
[1641880839098,0.00113684,3110.6,3110.2,32.17941233]
[1641880839301,0.00113684,3110.6,3110.3,1.0]
[1641880839497,0.00113684,3110.6,3110.3,1.6]
[1641880840300,0.00113684,3110.6,3110.3,4.69050195]
[1641880840499,0.00113684,3110.6,3110.3,6.29738195]
[1641880841451,0.00113684,3110.6,3110.3,6.34178174]
[1641880841659,0.00113684,3110.6,3110.4,0.08036]
[1641880841855,1.2,3111.0,3110.6,3.65]
[1641880842152,0.00170527,3110.9,3110.8,0.80333]
[1641880842356,0.00170527,3110.9,3110.8,4.08048471]
[1641880842554,0.00170527,3110.9,3110.8,5.59568471]
[1641880842957,0.00170527,3110.9,3110.8,6.39900471]
[1641880843355,0.00170527,3110.9,3110.8,2.12185]
[1641880843753,0.00170527,3110.9,3110.8,1.90665]
[1641880844153,0.00170527,3110.9,3110.8,4.05665]
[1641880844798,0.00170527,3110.9,3110.8,3.25332]
[1641880847198,0.00170527,3110.9,3110.8,0.3]
[1641880847396,0.00170527,3110.9,3110.7,0.3]
[1641880847602,0.00170527,3110.9,3110.6,3.85596174]
[1641880847797,0.00113685,3110.8,3110.6,3.85596174]
[1641880847999,0.00113685,3110.8,3110.7,7.02583969]
[1641880848198,0.00113685,3110.8,3110.6,0.6]
[1641880848652,0.00113685,3110.8,3110.6,0.3]
[1641880852708,0.00113685,3110.8,3110.1,0.00170528]
[1641880853104,0.00113685,3110.8,3109.9,0.00397896]
[1641880854505,2.73458134,3110.8,3109.9,0.00397896]
[1641880854703,3.97188134,3110.8,3109.9,0.00397896]
[1641880854903,3.97188134,3110.8,3109.5,0.00625266]
[1641880855106,1.1696344,3109.6,3109.5,0.00625266]
[1641880855312,1.1696344,3109.6,3109.5,0.05065245]
[1641880856078,1.16802937,3109.6,3109.5,3.15065245]
[1641880856472,1.16802937,3109.6,3109.5,3.45065245]
[1641880857070,1.16802937,3109.6,3109.5,0.35065245]
[1641880857272,1.16802937,3109.6,3109.5,0.05065245]
[1641880858071,1.16802937,3109.6,3109.5,0.00625266]
[1641880858474,1.16802937,3109.6,3108.9,1.60759]
[1641880858475,1.16802937,3109.6,3109.2,0.00795793]
[1641880858872,1.16802937,3109.6,3109.0,0.00909477]
[1641880859073,1.05879321,3109.1,3108.9,0.0096632]
[1641880859899,1.05879321,3109.1,3108.5,0.01193689]
[1641880860997,1.1688141,3108.6,3108.5,0.01193689]
[1641880861401,1.1688141,3108.6,3108.1,0.31421058]
[1641880861597,1.1688141,3108.6,3108.2,0.01364216]
[1641880862198,2.3688141,3108.6,3108.2,0.01364216]
[1641880862597,1.2,3108.6,3108.2,0.01364216]
[1641880862796,1.2,3108.6,3108.2,0.81765216]
[1641880863101,1.2,3108.6,3108.3,0.01307374]
[1641880863545,2.29969293,3108.6,3108.3,0.01307374]
[1641880863745,2.29969293,3108.6,3108.2,0.01364216]
[1641880863945,2.29969293,3108.6,3108.4,0.80402]
[1641880864144,2.29969293,3108.6,3108.4,1.10402]
[1641880864346,2.29969293,3108.6,3108.5,0.01193689]
[1641880867204,2.29969293,3108.6,3108.2,0.01364216]
[1641880870201,1.2,3108.6,3108.2,0.01364216]
[1641880872451,1.19837131,3108.6,3108.2,0.01364216]
[1641880875003,1.19837131,3108.6,3108.3,0.462]
[1641880875202,3.8698,3109.6,3108.4,6.61115752]
[1641880875401,3.8698,3109.6,3109.0,0.80387]
[1641880875599,4.5166,3109.7,3109.2,0.00638991]
[1641880875801,4.54359861,3109.7,3109.1,32.18793868]
[1641880876001,0.98040358,3109.5,3109.3,0.0073895]
[1641880876205,0.98040358,3109.5,3109.2,0.00795793]
[1641880877199,0.98040358,3109.5,3109.3,0.00433477]
[1641880877401,0.98040358,3109.5,3109.2,0.00795793]
[1641880881551,3.1991,3110.2,3109.2,4.11939891]
[1641880881950,3.1991,3110.2,3109.3,0.0073895]
[1641880882496,1.2,3109.5,3109.3,0.0073895]
[1641880883499,1.08311525,3109.6,3109.3,0.0073895]
[1641880885959,0.02025347,3109.5,3109.2,0.00795793]
[1641880886460,1.08311525,3109.6,3108.4,0.01250531]
[1641880887059,1.0015766,3108.5,3108.4,0.01250531]
[1641880887259,0.30884259,3109.6,3108.4,0.01250531]
[1641880887260,3.96994259,3109.6,3108.4,0.01250531]
[1641880887460,3.96722269,3109.6,3108.4,0.01250531]
[1641880887658,3.96722269,3109.6,3108.4,3.2933138]
[1641880887858,3.96722269,3109.6,3108.4,3.30581911]
[1641880888059,3.96722269,3109.6,3108.5,1.01193689]
[1641880888559,3.96722269,3109.6,3108.6,0.61136847]
[1641880888560,0.30612269,3109.6,3108.6,0.61136847]
[1641880888964,0.30612269,3109.6,3108.7,0.01080004]
[1641880889358,0.95073221,3108.9,3108.7,0.01080004]
[1641880890297,0.30612269,3109.6,3108.4,0.01250531]
[1641880890697,0.462,3109.5,3108.4,0.01250531]
[1641880890898,0.462,3109.5,3108.2,0.01364216]
[1641880891098,0.462,3109.5,3108.1,0.01421058]
[1641880891396,1.2856888,3108.8,3108.1,3.30752438]
[1641880891604,1.09033037,3108.4,3108.1,0.01421058]
[1641880891800,1.09033037,3108.4,3108.2,0.01364216]
[1641880891997,1.09033037,3108.4,3108.1,1.01421058]
[1641880892199,1.09033037,3108.4,3108.2,0.01364216]
[1641880892601,9.71754269,3109.6,3108.2,32.19305449]
[1641880892803,9.63712269,3109.6,3108.3,4.00399712]
[1641880893001,3.91812269,3109.6,3108.3,5.26707086]
[1641880893201,3.612,3109.6,3108.4,1.01250531]
[1641880893451,3.612,3109.6,3108.5,3.16395331]
[1641880893653,1.09270745,3109.0,3108.5,0.01193689]
[1641880895252,3.612,3109.6,3108.5,0.01193689]
[1641880895455,3.612,3109.6,3108.5,0.7868681]
[1641880895652,3.612,3109.6,3108.6,4.15006495]
[1641880895853,3.57554768,3109.6,3108.6,4.46143342]
[1641880896053,3.57554768,3109.6,3108.7,1.01080004]
[1641880896253,0.97001039,3109.2,3108.8,3.48612042]
[1641880896553,0.97001039,3109.2,3108.9,1.0096632]
[1641880897054,0.97001039,3109.2,3109.0,0.81294477]
[1641880897295,0.97001039,3109.2,3109.0,4.57024004]
[1641880897497,0.97001039,3109.2,3109.1,3.70852635]
[1641880897696,0.97001039,3109.2,3109.1,6.87883953]
[1641880898297,2.73272715,3109.7,3109.1,6.87883953]
[1641880898498,1.50642715,3109.7,3109.1,4.17883953]
[1641880898698,1.50642715,3109.7,3109.2,0.00795793]
[1641880899304,1.47002035,3109.7,3109.1,0.00852635]
[1641880899499,1.47002035,3109.7,3108.8,0.01023162]
[1641880900101,1.16449759,3109.0,3108.8,0.01023162]
[1641880900499,1.46793644,3109.7,3108.8,1.01023162]
[1641880900950,1.46793644,3109.7,3108.9,0.0096632]
[1641880901549,1.46793644,3109.7,3108.8,0.01023162]
[1641880902151,0.97859573,3108.9,3108.8,0.01023162]
[1641880902551,0.97859573,3108.9,3108.8,2.86023162]
[1641880902951,0.97859573,3108.9,3108.8,3.86023162]
[1641880903353,1.2275,3109.6,3108.8,3.86023162]
[1641880903553,1.2275,3109.6,3108.9,1.0]
[1641880903753,3.7625,3110.1,3109.0,3.11575457]
[1641880903954,4.9742,3110.1,3109.0,35.30426167]
[1641880904255,4.9742,3110.1,3109.1,1.47052635]
[1641880904558,1.15655757,3109.4,3109.2,4.4356146]
[1641880904798,1.15655757,3109.4,3109.2,1.06995793]
[1641880904998,1.15655757,3109.4,3109.3,5.3573895]
[1641880905202,1.15655757,3109.4,3109.3,7.47475004]
[1641880905400,1.15655757,3109.4,3109.3,8.47475004]
[1641880905999,1.15655757,3109.4,3109.3,5.3573895]
[1641880906199,1.15496671,3109.4,3109.3,5.3573895]
[1641880907300,1.2117,3110.1,3109.3,8.57106215]
[1641880907703,1.2117,3110.1,3109.4,0.00682108]
[1641880908103,1.2117,3110.1,3109.4,1.30682108]
[1641880908303,3.1991,3110.2,3109.4,1.30682108]
[1641880908550,1.52924974,3109.6,3109.5,0.00625266]
[1641880908748,0.98232029,3110.0,3109.5,0.00625266]
[1641880909549,0.98232029,3110.0,3109.5,0.30625266]
[1641880909851,0.98232029,3110.0,3109.6,0.00568423]
[1641880910249,1.46375828,3109.7,3109.6,0.00568423]
[1641880910648,1.46375828,3109.7,3109.4,0.00682108]
[1641880912303,0.98232029,3110.0,3109.3,0.3073895]
[1641880912507,0.98232029,3110.0,3109.4,0.00682108]
[1641880912904,0.98232029,3110.0,3109.3,0.0073895]
[1641880913307,1.19205344,3109.8,3109.5,0.00772159]
[1641880913704,1.19205344,3109.8,3109.6,0.00568423]
[1641880918658,1.19205344,3109.8,3109.5,0.00625266]
[1641880919056,0.98232029,3110.0,3109.5,0.00625266]
[1641880919256,0.98232029,3110.0,3109.5,1.05305266]
[1641880919457,0.98232029,3110.0,3109.5,1.35305266]
[1641880919713,0.98232029,3110.0,3109.6,0.00568423]
[1641880920111,3.1991,3110.2,3109.6,0.80188423]
[1641880920315,4.10128395,3110.8,3109.7,32.64141233]
[1641880920511,4.10128395,3110.8,3109.8,1.60712]
[1641880920709,4.10128395,3110.8,3109.8,2.07366739]
[1641880920909,4.10128395,3110.8,3109.9,0.00397896]
[1641880921211,1.99764752,3110.7,3109.9,0.00397896]
[1641880921910,1.03753052,3110.0,3109.9,0.00397896]
[1641880922110,1.03753052,3110.0,3109.9,0.30397896]
[1641880922310,1.03753052,3110.0,3109.9,3.90397896]
[1641880922713,1.03753052,3110.0,3109.9,4.90397896]
[1641880923553,1.03753052,3110.0,3109.9,1.30397896]
[1641880923953,1.03753052,3110.0,3109.9,32.48339129]
[1641880924154,1.03753052,3110.0,3109.9,34.28699129]
[1641880924353,0.86967232,3110.0,3109.9,34.28699129]
[1641880926958,1.16383016,3110.7,3109.9,34.28699129]
[1641880927220,0.00170527,3110.9,3109.9,34.28699129]
[1641880927221,0.00170527,3110.9,3110.0,35.7136259]
[1641880927414,0.00170527,3110.9,3110.6,0.01287967]
[1641880927617,3.9388,3111.6,3110.6,0.01287967]
[1641880927618,0.00113685,3110.8,3110.7,32.64141233]
[1641880927815,4.88651355,3112.0,3110.8,5.8]
[1641880928014,1.1343537,3110.9,3110.8,6.262]
[1641880928217,1.1343537,3110.9,3110.8,6.34235]
[1641880928413,1.41451021,3111.7,3110.8,6.34235]
[1641880928813,0.00454739,3111.6,3110.8,6.34235]
[1641880929015,0.00454739,3111.6,3110.8,7.1457]
[1641880929215,0.00397896,3111.5,3111.1,0.8032821]
[1641880929426,1.60795083,3112.0,3111.2,32.64141233]
[1641880929427,1.0935649,3112.0,3111.2,32.64141233]
[1641880929614,1.0935649,3112.0,3111.3,0.09252841]
[1641880929813,0.0022737,3111.9,3111.4,2.06808]
[1641880930014,0.0022737,3111.9,3111.5,0.3]
[1641880930214,0.00170527,3111.8,3111.7,5.80311]
[1641880930415,0.00170527,3111.8,3111.7,6.18344]
[1641880930616,0.00170527,3111.8,3111.7,6.48344]
[1641880931256,0.0001092,3111.8,3111.7,6.48344]
[1641880931760,2.4092395,3114.8,3112.0,0.80299]
[1641880931958,2.4092395,3114.8,3112.3,0.80299]
[1641880931959,6.98368495,3113.4,3112.3,0.80299]
[1641880932160,0.00397897,3112.5,3112.3,0.3]
[1641880932359,0.00397897,3112.5,3112.2,4.036]
[1641880932558,0.97882457,3112.4,3112.2,4.336]
[1641880932862,3.57262759,3113.4,3112.3,0.80297]
[1641880932863,2.73213359,3113.3,3112.3,0.80297]
[1641880933060,2.73213359,3113.3,3112.3,1.1657]
[1641880933260,0.00170527,3112.7,3112.4,1.6057567]
[1641880933465,0.00170527,3112.7,3112.4,2.7086312]
[1641880933665,1.06581073,3113.0,3112.4,8.9706312]
[1641880933865,1.06581073,3113.0,3112.5,0.08031]
[1641880934064,1.06581073,3113.0,3112.5,0.88319]
[1641880934904,1.06581073,3113.0,3112.5,2.48869]
[1641880937210,1.06581073,3113.0,3112.5,2.95069]
[1641880937408,0.00341054,3113.2,3112.5,6.18904945]
[1641880937612,0.00341054,3113.2,3112.8,0.80278]
[1641880937810,12.47833262,3115.1,3113.0,6.60265]
[1641880937811,0.00284212,3113.1,3113.0,6.60265]
[1641880938010,3.27856272,3115.0,3113.2,0.01095363]
[1641880938207,3.27856272,3115.0,3113.1,5.68515071]
[1641880938456,0.84222841,3114.1,3113.4,1.16452885]
[1641880938656,0.84222841,3114.1,3113.4,0.3]
[1641880938855,0.00511581,3114.0,3113.6,0.8026426]
[1641880939055,0.00511581,3114.0,3113.7,1.10265]
[1641880939256,0.00454739,3113.9,3113.7,1.40265]
[1641880939655,0.00397896,3113.8,3113.7,1.40265]
[1641880940057,0.00397896,3113.8,3113.7,3.85265]
[1641880940658,0.00397896,3113.8,3113.7,1.40265]
[1641880941269,0.00397896,3113.8,3113.2,1.6052852]
[1641880941270,0.00397896,3113.8,3112.9,3.7666]
[1641880941464,0.00397896,3113.8,3112.9,4.56943]
[1641880941662,0.00341054,3113.7,3112.9,3.7666]
[1641880942065,1.16401634,3113.4,3112.9,3.7666]
[1641880942316,0.00284212,3113.6,3112.6,0.81537828]
[1641880942515,3.91797264,3114.6,3112.6,0.81537828]
[1641880942516,0.00113685,3113.3,3112.8,0.80288]
[1641880942713,0.00227369,3113.5,3113.0,0.8027685]
[1641880942912,0.00795793,3114.5,3113.0,1.1027685]
[1641880943113,0.00170527,3113.4,3113.1,0.3]
[1641880943313,1.37635774,3113.9,3113.1,0.3]
[1641880943513,0.00113685,3113.3,3113.1,0.3]
[1641880943713,1.09832057,3113.5,3113.1,0.3]
[1641880944018,0.00170527,3113.4,3113.2,1.10278]
[1641880944414,0.00113685,3113.3,3113.2,1.40278]
[1641880945015,0.00113685,3113.3,3113.2,5.35278]
[1641880947750,0.13819997,3114.6,3113.3,4.65]
[1641880947954,0.13819997,3114.6,3113.8,0.80262]
[1641880948151,0.00568423,3114.5,3113.8,0.80262]
[1641880948351,1.12958067,3114.5,3113.8,1.40262]
[1641880948551,1.15628976,3114.2,3113.8,1.40262]
[1641880948951,0.00341053,3114.1,3113.8,1.40262]
[1641880949352,0.00284211,3114.0,3113.8,1.40262]
[1641880949805,0.00227369,3113.9,3113.8,1.40262]
[1641880950004,0.00227369,3113.9,3113.8,0.3]
[1641880950406,0.00227369,3113.9,3113.6,0.3]
[1641880950602,0.00227369,3113.9,3113.3,2.20535]
[1641880950802,0.00170526,3113.8,3113.3,2.20535]
[1641880951203,0.00113684,3113.7,3113.3,2.20535]
[1641880951406,1.05308399,3113.6,3113.3,2.20535]
[1641880951606,1.05308399,3113.6,3113.3,0.6]
[1641880951809,1.05308399,3113.6,3113.3,0.3]
[1641880952008,1.05308399,3113.6,3112.9,5.89385685]
[1641880952207,1.05308399,3113.6,3112.9,6.19385685]
[1641880952404,1.05308399,3113.6,3113.0,0.00284212]
[1641880952605,1.40165741,3113.3,3113.0,0.00284212]
[1641880953853,1.3999864,3113.3,3113.0,0.00284212]
[1641880954457,1.05308399,3113.6,3113.1,0.8028042]
[1641880954854,1.05308399,3113.6,3113.2,0.00170528]
[1641880955656,1.05308399,3113.6,3113.2,0.80446528]
[1641880955957,1.05308399,3113.6,3113.3,0.00113685]
[1641880956156,0.00113684,3113.7,3113.3,0.00113685]
[1641880956356,0.00113684,3113.7,3113.3,1.60644685]
[1641880956555,0.00113684,3113.7,3113.3,1.90644685]
[1641880957062,0.00113684,3113.7,3113.4,1.1026537]
[1641880957309,0.84482443,3113.7,3113.4,0.3]
[1641880958507,0.84482443,3113.7,3113.3,0.00113685]
[1641880958903,0.84482443,3113.7,3113.1,0.0022737]
[1641880959504,1.17119484,3113.4,3113.1,0.0022737]
[1641880959906,1.17119484,3113.4,3113.1,1.0022737]
[1641880960104,1.17119484,3113.4,3113.1,1.3022737]
[1641880960304,1.17119484,3113.4,3113.2,0.00170528]
[1641880961550,0.84482443,3113.7,3113.2,0.00170528]
[1641880965006,0.00113684,3113.7,3113.3,0.80274]
[1641880965401,0.00113684,3113.7,3113.3,1.40274]
[1641880966202,0.94714939,3113.7,3113.3,1.40274]
[1641880969256,0.00113684,3113.7,3113.3,1.40274]
[1641880971758,0.00113684,3113.7,3113.3,0.6]
[1641880971959,0.00113684,3113.7,3113.3,0.3]
[1641880972232,0.00113684,3113.7,3113.2,0.00170528]
[1641880973022,0.00113684,3113.7,3113.4,0.8027]
[1641880973224,2.73137879,3113.9,3113.5,5.8]
[1641880973426,0.00655434,3113.6,3113.5,5.8]
[1641880973627,0.00655434,3113.6,3113.5,5.80113685]
[1641880973823,2.73137879,3113.9,3113.5,8.65113685]
[1641880974022,2.73137879,3113.9,3113.6,0.3]
[1641880974223,1.2182,3114.6,3113.7,2.4076944]
[1641880974424,1.2182,3114.6,3113.7,2.7076944]
[1641880974623,0.00454739,3114.5,3113.7,3.0076944]
[1641880975023,0.00397896,3114.4,3113.7,3.0076944]
[1641880975223,0.00397896,3114.4,3113.7,2.0076944]
[1641880975428,0.93234238,3114.3,3113.7,2.0076944]
[1641880975622,0.93234238,3114.3,3114.0,0.80256]
[1641880975823,0.00284212,3114.2,3114.0,0.80256]
[1641880976257,0.00227369,3114.1,3114.0,0.80256]
[1641880977157,0.00227369,3114.1,3114.0,1.40256]
[1641880978157,0.00227369,3114.1,3114.0,1.41000945]
[1641880978458,0.00227369,3114.1,3114.0,4.62137217]
[1641880978657,0.00227369,3114.1,3114.0,5.62137217]
[1641880979056,0.00227369,3114.1,3114.0,2.41000945]
[1641880979257,0.00227369,3114.1,3114.0,5.98118772]
[1641880979456,0.00227369,3114.1,3114.0,4.98118772]
[1641880979721,0.00227369,3114.1,3114.0,5.98118772]
[1641880980315,0.00227369,3114.1,3114.0,2.41000945]
[1641880980521,0.00227369,3114.1,3114.0,1.41000945]
[1641880980713,0.00227369,3114.1,3114.0,4.47602076]
[1641880980915,0.00227369,3114.1,3114.0,4.17602076]
[1641880981115,0.00227369,3114.1,3114.0,5.17602076]
[1641880981815,0.00227369,3114.1,3114.0,5.47602076]
[1641880982016,2.73085699,3114.6,3114.1,4.25]
[1641880982214,2.73085699,3114.6,3114.2,1.60489]
[1641880982415,0.0022737,3114.5,3114.3,0.80244]
[1641880982618,0.0022737,3114.5,3114.3,1.80904]
[1641880982816,0.00170527,3114.4,3114.3,1.80904]
[1641880983553,0.00170527,3114.4,3114.3,5.35904]
[1641880983753,0.00170527,3114.4,3114.3,6.35904]
[1641880984052,0.00170527,3114.4,3114.3,7.1614907]
[1641880984255,0.00170527,3114.4,3114.3,39.34090303]